bitfinex-derivatives/quotes_BTCF0:USTF0_20250630
["timestamp","ask_amount","ask_price","bid_price","bid_amount"]
[1751294855341,0.2330216,107270.0,107260.0,1.57814072]
[1751294855531,0.2330216,107270.0,107260.0,1.66504072]
[1751294855939,0.2330216,107270.0,107260.0,1.13176297]
[1751294856140,0.1864193,107270.0,107260.0,1.31818197]
[1751294856338,0.2795962,107280.0,107270.0,0.1864016]
[1751294856640,0.2795962,107280.0,107270.0,0.63902332]
[1751294856841,0.2795962,107280.0,107270.0,0.3203016]
[1751294857036,0.59831792,107280.0,107270.0,0.3203016]
[1751294857244,0.59831792,107280.0,107270.0,1.0306216]
[1751294857537,0.60031792,107280.0,107270.0,1.0306216]
[1751294857743,0.71733798,107280.0,107270.0,1.0306216]
[1751294858542,0.69421792,107280.0,107270.0,1.0306216]
[1751294858946,0.71083722,107280.0,107270.0,1.0306216]
[1751294859242,0.75633722,107280.0,107270.0,1.0306216]
[1751294859548,0.75633722,107280.0,107270.0,1.3914216]
[1751294860535,0.75633722,107280.0,107270.0,0.84422]
[1751294860740,0.1864016,107270.0,107260.0,0.5938187]
[1751294860941,0.1864016,107270.0,107260.0,1.487463]
[1751294861345,0.1864016,107270.0,107260.0,0.777223]
[1751294861544,0.1864016,107270.0,107260.0,1.487103]
[1751294862138,0.1874016,107270.0,107260.0,1.487103]
[1751294862539,0.1874016,107270.0,107260.0,1.4404987]
[1751294863038,0.50612332,107270.0,107260.0,0.84648]
[1751294863334,0.186419,107260.0,107250.0,0.73032526]
[1751294863536,0.186419,107260.0,107250.0,0.86302526]
[1751294863733,0.186419,107260.0,107250.0,1.57266526]
[1751294864640,0.186419,107260.0,107250.0,0.81641686]
[1751294864846,0.51514072,107260.0,107250.0,1.11854476]
[1751294865349,0.196419,107260.0,107250.0,1.11854476]
[1751294865742,0.196419,107260.0,107250.0,1.12054476]
[1751294866049,0.196419,107260.0,107250.0,1.04618453]
[1751294866941,0.196419,107260.0,107250.0,1.40698453]
[1751294870149,0.196419,107260.0,107250.0,0.47190453]
[1751294870350,0.51514072,107260.0,107250.0,0.19592813]
[1751294870547,0.65084072,107260.0,107250.0,0.77020813]
[1751294871057,0.65084072,107260.0,107250.0,0.95664443]
[1751294871951,0.65084072,107260.0,107250.0,1.00164443]
[1751294873154,1.65084072,107260.0,107250.0,1.00164443]
[1751294873342,1.60734072,107260.0,107250.0,1.00164443]
[1751294874054,1.186419,107260.0,107250.0,1.00164443]
[1751294875043,1.186419,107260.0,107250.0,1.36244443]
[1751294875957,1.186419,107260.0,107250.0,1.00164443]
[1751294878051,1.186419,107260.0,107250.0,1.68116615]
[1751294878653,1.186419,107260.0,107250.0,1.32036615]
[1751294878958,1.186419,107260.0,107250.0,1.68116615]
[1751294882159,1.186419,107260.0,107250.0,0.97188615]
[1751294882358,1.186419,107260.0,107250.0,1.68120615]
[1751294884564,1.186419,107260.0,107250.0,1.75556638]
[1751294885863,1.186419,107260.0,107250.0,1.68120615]
[1751294886063,1.0,107260.0,107250.0,1.68120615]
[1751294886259,1.0,107260.0,107250.0,1.75556638]
[1751294887268,1.0,107260.0,107250.0,1.75548638]
[1751294887460,1.0,107260.0,107250.0,1.43676466]
[1751294887664,1.1864189,107260.0,107250.0,1.75548638]
[1751294888764,1.0,107260.0,107250.0,1.75548638]
[1751294890571,1.1864189,107260.0,107250.0,1.75548638]
[1751294892270,1.1864189,107260.0,107250.0,1.04624638]
[1751294892568,1.1864189,107260.0,107250.0,1.75544638]
[1751294898760,1.1864189,107260.0,107250.0,1.04624638]
[1751294898964,1.2036044,107260.0,107250.0,1.27384443]
[1751294899165,1.2036044,107260.0,107250.0,1.59256615]
[1751294899367,1.2036044,107260.0,107250.0,1.67976615]
[1751294899766,1.2036044,107260.0,107250.0,1.77277703]
[1751294899975,1.2036044,107260.0,107250.0,1.67976615]
[1751294900671,1.2036044,107260.0,107250.0,1.67972615]
[1751294901265,1.2036044,107260.0,107250.0,1.77273703]
[1751294901465,1.2036044,107260.0,107250.0,1.41193703]
[1751294901666,1.2036044,107260.0,107250.0,1.67972615]
[1751294902070,1.2036044,107260.0,107250.0,1.77273703]
[1751294902579,1.0171855,107260.0,107250.0,1.77273703]
[1751294902776,1.2036045,107260.0,107250.0,1.84726197]
[1751294903073,1.2036045,107260.0,107250.0,1.67972615]
[1751294903473,1.0171855,107260.0,107250.0,1.67972615]
[1751294903674,1.0171855,107260.0,107250.0,1.77273703]
[1751294904170,0.32616136,107260.0,107250.0,1.96619815]
[1751294904366,0.32616136,107260.0,107250.0,2.05920903]
[1751294904968,0.32616136,107260.0,107250.0,2.05932829]
[1751294905176,0.30897586,107260.0,107250.0,2.04380016]
[1751294906668,0.30897586,107260.0,107250.0,1.95067002]
[1751294906866,0.30897586,107260.0,107250.0,2.04377119]
[1751294907074,0.30897586,107260.0,107250.0,2.08088525]
[1751294907277,0.30897586,107260.0,107250.0,2.17396669]
[1751294907478,0.30897586,107260.0,107250.0,2.17396522]
[1751294907678,0.30897586,107260.0,107250.0,2.08088525]
[1751294908168,0.466064,107290.0,107280.0,0.1863842]
[1751294908368,0.418664,107290.0,107280.0,1.21402592]
[1751294908576,0.418664,107290.0,107280.0,1.66442592]
[1751294909178,0.3720689,107290.0,107280.0,1.66442592]
[1751294909675,0.3720689,107290.0,107280.0,1.30362592]
[1751294909880,0.3750689,107290.0,107280.0,1.73954368]
[1751294910075,0.3750689,107290.0,107280.0,1.64994368]
[1751294910276,0.3750689,107290.0,107280.0,1.33122196]
[1751294911277,0.3750689,107290.0,107280.0,0.97042196]
[1751294911482,0.69379062,107290.0,107280.0,0.26150186]
[1751294911781,1.07766756,107290.0,107280.0,0.26150186]
[1751294911982,1.07766756,107290.0,107280.0,0.97042186]
[1751294912283,0.1863841,107280.0,107270.0,1.49521774]
[1751294912484,0.63870582,107280.0,107270.0,1.44861744]
[1751294912683,0.63870582,107280.0,107270.0,2.15749744]
[1751294913087,0.63870582,107280.0,107270.0,1.4329867]
[1751294913494,0.63970582,107280.0,107270.0,2.0952676]
[1751294913890,0.3209841,107280.0,107270.0,2.0952676]
[1751294914782,0.3209841,107280.0,107270.0,1.7344676]
[1751294915294,0.3209841,107280.0,107270.0,1.0255876]
[1751294915494,0.3209841,107280.0,107270.0,1.7344276]
[1751294916394,0.63970582,107280.0,107270.0,2.0952276]
[1751294916593,0.63970582,107280.0,107270.0,1.7344276]
[1751294917894,0.3209841,107280.0,107270.0,1.7344276]
[1751294918197,0.3209841,107280.0,107270.0,2.0952276]
[1751294921193,0.1873841,107280.0,107270.0,2.55184932]
[1751294921796,0.1873841,107280.0,107270.0,2.19104932]
[1751294921994,0.1873841,107280.0,107270.0,2.55184932]
[1751294922499,0.1863841,107280.0,107270.0,2.55184932]
[1751294924100,0.1863841,107280.0,107270.0,2.62629805]
[1751294924306,0.1863841,107280.0,107270.0,2.55184932]
[1751294926497,0.1863841,107280.0,107270.0,2.62629805]
[1751294929704,0.1863841,107280.0,107270.0,2.55184932]
[1751294930099,0.1863841,107280.0,107270.0,2.2331276]
[1751294930295,0.1863841,107280.0,107270.0,2.55184932]
[1751294932112,0.50510582,107280.0,107270.0,1.4803876]
[1751294932406,0.52857062,107280.0,107270.0,1.7341076]
[1751294932609,0.66637062,107280.0,107270.0,1.7341076]
[1751294932799,0.3476489,107280.0,107270.0,1.7341076]
[1751294933111,0.3476489,107280.0,107270.0,2.0949076]
[1751294933904,0.3476489,107280.0,107270.0,2.0948676]
[1751294934208,0.3241841,107280.0,107270.0,2.16931633]
[1751294934710,0.64290582,107280.0,107270.0,2.16931633]
[1751294935109,0.64290582,107280.0,107270.0,1.80851633]
[1751294935298,0.64290582,107280.0,107270.0,1.10003633]
[1751294935503,1.02290582,107280.0,107270.0,1.80847633]
[1751294935704,1.38370582,107280.0,107270.0,0.91364873]
[1751294935906,2.0060721,107280.0,107270.0,1.54764]
[1751294936106,1.96082088,107280.0,107270.0,0.97396]
[1751294936408,1.71082088,107280.0,107270.0,0.97396]
[1751294937710,0.1864189,107260.0,107250.0,0.75987783]
[1751294938008,0.1864189,107260.0,107250.0,1.0330291]
[1751294938009,0.50514062,107260.0,107250.0,1.0330291]
[1751294938206,0.59424062,107260.0,107250.0,1.0330291]
[1751294938407,0.59424062,107260.0,107250.0,1.10751783]
[1751294938804,0.59424062,107260.0,107250.0,1.10951783]
[1751294939404,0.59424062,107260.0,107250.0,1.10751783]
[1751294940909,0.2755189,107260.0,107250.0,1.10751783]
[1751294941210,0.55024062,107260.0,107250.0,1.10751783]
[1751294942310,0.55024062,107260.0,107250.0,0.39907783]
[1751294942512,0.1864362,107250.0,107240.0,0.72760422]
[1751294942698,0.50515792,107250.0,107240.0,0.34190873]
[1751294942904,0.50515792,107250.0,107240.0,1.10200233]
[1751294943108,0.61185686,107250.0,107240.0,0.39360233]
[1751294943309,0.61185686,107250.0,107240.0,1.05610233]
[1751294943513,1.01605686,107250.0,107240.0,1.05610233]
[1751294943813,0.65605686,107250.0,107240.0,1.05610233]
[1751294944612,0.65605686,107250.0,107240.0,0.43846233]
[1751294944910,0.65605686,107250.0,107240.0,0.96930233]
[1751294945212,0.98605686,107250.0,107240.0,0.70844]
[1751294945512,1.36685686,107250.0,107240.0,0.70844]
[1751294946713,1.37685686,107250.0,107240.0,0.70844]
[1751294947304,1.37685686,107250.0,107240.0,0.13476]
[1751294947501,1.37685686,107250.0,107240.0,0.70844]
[1751294948508,0.1864535,107240.0,107230.0,1.74897833]
[1751294948708,1.17597522,107240.0,107230.0,0.97485253]
[1751294948911,1.26877522,107240.0,107230.0,1.56252481]
[1751294949111,1.26877522,107240.0,107230.0,1.63697354]
[1751294949508,1.26877522,107240.0,107230.0,1.06333354]
[1751294949712,1.26877522,107240.0,107230.0,0.98888481]
[1751294950315,1.26877522,107240.0,107230.0,0.99088481]
[1751294950515,1.26877522,107240.0,107230.0,0.85608481]
[1751294950703,0.95877522,107240.0,107230.0,1.17735571]
[1751294950908,0.95877522,107240.0,107230.0,0.99088481]
[1751294951608,1.29877522,107240.0,107230.0,0.99088481]
[1751294951812,1.29977522,107240.0,107230.0,0.98888481]
[1751294953321,1.39977522,107240.0,107230.0,0.98888481]
[1751294953525,2.29213694,107240.0,107230.0,1e-08]
[1751294954216,0.9810535,107240.0,107230.0,1e-08]
[1751294954415,1.87345522,107240.0,107230.0,1e-08]
[1751294954721,2.37345522,107240.0,107230.0,1e-08]
[1751294955111,2.47345522,107240.0,107230.0,1e-08]
[1751294955312,2.37345522,107240.0,107230.0,1e-08]
[1751294955906,2.01261522,107240.0,107230.0,1e-08]
[1751294956112,1.79977522,107240.0,107230.0,1e-08]
[1751294956510,1.79977522,107240.0,107230.0,0.18647091]
[1751294956511,1.0732535,107240.0,107230.0,0.18647091]
[1751294956713,1.3882535,107240.0,107230.0,0.32017091]
[1751294956915,1.34617522,107240.0,107230.0,0.32017091]
[1751294957214,0.84617522,107240.0,107230.0,0.32017091]
[1751294958319,0.1874535,107240.0,107230.0,0.68097091]
[1751294958522,0.1864535,107240.0,107230.0,0.13370001]
[1751294958714,0.1864535,107240.0,107230.0,0.32017091]
[1751294958914,0.50517522,107240.0,107230.0,1.02861091]
[1751294959425,0.50517522,107240.0,107230.0,0.32017091]
[1751294959615,0.50517522,107240.0,107230.0,1.02849091]
[1751294960017,0.1864535,107240.0,107230.0,1.70801263]
[1751294960217,0.1864535,107240.0,107230.0,1.38929091]
[1751294960421,0.1864535,107240.0,107230.0,1.70801262]
[1751294961719,1.3262889,107250.0,107240.0,0.1864535]
[1751294961935,1.3262889,107250.0,107240.0,0.95867522]
[1751294962225,1.3262889,107250.0,107240.0,0.59787522]
[1751294962413,1.3262889,107250.0,107240.0,0.95867522]
[1751294964119,1.2796761,107250.0,107240.0,0.97316561]
[1751294964315,1.2330641,107250.0,107240.0,0.97316561]
[1751294964525,1.1864535,107250.0,107240.0,0.97316561]
[1751294965828,1.1864535,107250.0,107240.0,0.97386408]
[1751294966723,1.0,107250.0,107240.0,1.36903453]
[1751294967027,1.0,107250.0,107240.0,1.05031281]
[1751294967528,1.1864361,107250.0,107240.0,1.05031281]
[1751294967729,1.1864361,107250.0,107240.0,1.75851281]
[1751294969433,1.1864361,107250.0,107240.0,1.05031281]
[1751294969630,1.1864361,107250.0,107240.0,1.75847281]
[1751294971932,1.1864361,107250.0,107240.0,1.05031281]
[1751294972529,1.1864361,107250.0,107240.0,1.75839281]
[1751294973133,1.1864361,107250.0,107240.0,1.05031281]
[1751294973325,1.1864361,107250.0,107240.0,0.73159109]
[1751294973526,1.1864361,107250.0,107240.0,1.75839281]
[1751294974229,1.1864361,107250.0,107240.0,1.05031281]
[1751294974431,1.1864361,107250.0,107240.0,1.43963109]
[1751294974633,1.1864361,107250.0,107240.0,1.36518236]
[1751294975129,1.1864361,107250.0,107240.0,0.37079109]
[1751294975326,1.5819361,107250.0,107240.0,0.95868236]
[1751294975521,1.6254361,107250.0,107240.0,0.95868236]
[1751294975832,1.6254361,107250.0,107240.0,0.38528236]
[1751294976033,1.6254361,107250.0,107240.0,0.95868236]
[1751294976331,1.6254361,107250.0,107240.0,0.72522886]
[1751294976524,1.2754361,107250.0,107240.0,0.91168236]
[1751294977327,1.5854361,107250.0,107240.0,0.15182886]
[1751294977535,1.90415782,107250.0,107240.0,0.72518886]
[1751294977735,1.59415782,107250.0,107240.0,0.72518886]
[1751294977938,1.2754361,107250.0,107240.0,0.72518886]
[1751294978133,1.6362361,107250.0,107240.0,0.72518886]
[1751294978438,1.6362361,107250.0,107240.0,0.72318886]
[1751294978630,1.95495782,107250.0,107240.0,0.72318886]
[1751294979233,1.95495782,107250.0,107240.0,0.14982886]
[1751294979436,1.95495782,107250.0,107240.0,0.72318886]
[1751294979640,2.26495782,107250.0,107240.0,0.72318886]
[1751294979940,1.9462361,107250.0,107240.0,0.72318886]
[1751294980138,2.28495782,107250.0,107240.0,0.01518886]
[1751294980443,2.28495782,107250.0,107240.0,0.72318886]
[1751294980935,2.28495782,107250.0,107240.0,0.16424588]
[1751294981129,2.28495782,107250.0,107240.0,0.14905702]
[1751294981738,2.28495782,107250.0,107240.0,0.16309556]
[1751294981936,2.85831782,107250.0,107240.0,0.01403854]
[1751294982141,2.85931782,107250.0,107240.0,0.01403854]
[1751294982336,0.1864709,107230.0,107220.0,0.708]
[1751294982639,0.50519262,107230.0,107220.0,0.7224159]
[1751294982845,0.2731709,107230.0,107220.0,0.0144159]
[1751294983041,1.30924791,107230.0,107220.0,0.0144159]
[1751294983940,0.1864882,107220.0,107210.0,1.15352904]
[1751294984142,0.27669432,107220.0,107210.0,1.15302598]
[1751294985244,0.27669432,107220.0,107210.0,1.06232598]
[1751294985436,0.31929432,107220.0,107210.0,1.01569968]
[1751294986145,0.68929432,107220.0,107210.0,0.44237968]
[1751294986444,1.00801604,107220.0,107210.0,0.96883968]
[1751294986846,0.68929432,107220.0,107210.0,0.96883968]
[1751294987341,0.23029432,107220.0,107210.0,0.96883968]
[1751294987547,0.23029432,107220.0,107210.0,1.05963968]
[1751294988149,0.27579432,107220.0,107210.0,1.05963968]
[1751294988452,1.49186004,107220.0,107210.0,0.002]
[1751294988643,1.72650004,107220.0,107210.0,0.002]
[1751294989647,1.43995604,107220.0,107210.0,0.002]
[1751294989949,1.53995604,107220.0,107210.0,0.002]
[1751294990753,0.1865051,107210.0,107200.0,0.19254545]
[1751294990952,1.00292682,107210.0,107200.0,0.20706761]
[1751294991148,1.01342988,107210.0,107200.0,0.20706761]
[1751294991352,1.01342988,107210.0,107200.0,0.76594585]
[1751294991748,1.01442988,107210.0,107200.0,0.76594585]
[1751294992451,0.89362988,107210.0,107200.0,1.14125597]
[1751294993154,0.97004603,107210.0,107200.0,0.76594595]
[1751294993447,0.97004603,107210.0,107200.0,0.57942335]
[1751294993653,0.65132431,107210.0,107200.0,0.76594595]
[1751294993953,0.65132431,107210.0,107200.0,0.90304595]
[1751294994254,0.65132431,107210.0,107200.0,0.91753198]
[1751294994850,0.26442431,107210.0,107200.0,0.93199969]
[1751294995052,0.26442431,107210.0,107200.0,1.29279969]
[1751294995250,0.26442431,107210.0,107200.0,0.93199969]
[1751294996554,0.26442431,107210.0,107200.0,1.29279969]
[1751294997055,0.26442431,107210.0,107200.0,0.93199969]
[1751294999257,0.58314603,107210.0,107200.0,0.35859969]
[1751294999459,0.58314603,107210.0,107200.0,0.74547709]
[1751294999759,1.58314603,107210.0,107200.0,0.74547709]
[1751295000358,1.94394603,107210.0,107200.0,0.74547709]
[1751295001461,1.94394603,107210.0,107200.0,0.65351709]
[1751295001760,2.41594603,107210.0,107200.0,0.65351709]
[1751295002258,2.43298368,107210.0,107200.0,0.08007709]
[1751295002557,2.43298368,107210.0,107200.0,0.03497709]
[1751295002858,2.11426196,107210.0,107200.0,0.03497709]
[1751295003060,2.07298368,107210.0,107200.0,0.03497709]
[1751295003261,2.41298368,107210.0,107200.0,0.03497709]
[1751295003463,2.07298368,107210.0,107200.0,0.12987709]
[1751295003658,2.41298368,107210.0,107200.0,0.12987709]
[1751295005962,1.98098368,107210.0,107200.0,0.12987709]
[1751295006358,2.28098368,107210.0,107200.0,0.12987709]
[1751295006665,2.37048368,107210.0,107200.0,0.08327709]
[1751295008158,1.71736196,107210.0,107200.0,0.08327709]
[1751295008358,2.03608368,107210.0,107200.0,0.13012395]
[1751295008667,2.37608368,107210.0,107200.0,0.13012395]
[1751295008867,2.42258368,107210.0,107200.0,0.13012395]
[1751295009667,2.42258368,107210.0,107200.0,0.08332395]
[1751295010367,2.42258368,107210.0,107200.0,0.03502395]
[1751295011763,2.44543673,107210.0,107200.0,0.03502395]
[1751295012159,2.99873335,107210.0,107170.0,0.0715786]
[1751295012361,0.72616242,107180.0,107160.0,0.09305939]
[1751295012659,0.1865921,107160.0,107150.0,0.0488]
[1751295012969,0.84641384,107160.0,107150.0,0.0956]
[1751295013168,1.2077169,107160.0,107150.0,0.1444]
[1751295013365,1.2077169,107160.0,107150.0,0.3310095]
[1751295013669,1.23082035,107160.0,107150.0,0.1444]
[1751295014073,0.52819518,107160.0,107150.0,0.3310095]
[1751295014268,0.00050306,107160.0,107150.0,1.14505122]
[1751295014480,0.00050306,107160.0,107150.0,1.71845122]
[1751295014670,0.18709516,107160.0,107150.0,1.71845122]
[1751295015072,0.18709516,107160.0,107150.0,1.3997295]
[1751295015273,0.18709516,107160.0,107150.0,0.6918095]
[1751295015472,0.18709516,107160.0,107150.0,1.4000895]
[1751295015671,0.18709516,107160.0,107150.0,1.0412895]
[1751295015867,0.18709516,107160.0,107150.0,0.28092]
[1751295016070,0.18709516,107160.0,107150.0,0.1464]
[1751295016978,1.24205306,107160.0,107150.0,0.0976]
[1751295017272,1.43565612,107160.0,107150.0,1e-07]
[1751295017472,1.62230412,107160.0,107150.0,1e-07]
[1751295019166,1.52230412,107160.0,107150.0,1e-07]
[1751295019365,1.62230412,107160.0,107150.0,1e-07]
[1751295019564,1.52230412,107160.0,107150.0,1e-07]
[1751295019772,2.41057612,107160.0,107150.0,1e-07]
[1751295019973,2.03641822,107160.0,107150.0,1e-07]
[1751295020176,2.41057612,107160.0,107150.0,1e-07]
[1751295020375,1.83565612,107160.0,107150.0,1e-07]
[1751295020568,2.41077612,107160.0,107150.0,1e-07]
[1751295020773,1.83565612,107160.0,107150.0,0.0470001]
[1751295020975,1.83565612,107160.0,107150.0,1e-07]
[1751295022073,1.83565612,107160.0,107150.0,0.0939001]
[1751295022274,1.33565612,107160.0,107150.0,0.0939001]
[1751295023380,1.35877778,107160.0,107150.0,0.0939001]
[1751295023987,1.98461988,107160.0,107150.0,0.2805097]
[1751295024283,2.33565612,107160.0,107150.0,0.0939001]
[1751295024672,2.33565612,107160.0,107150.0,0.2805097]
[1751295024875,1.50759822,107160.0,107150.0,0.2805097]
[1751295025079,1.86839822,107160.0,107150.0,0.0939001]
[1751295025280,1.86839822,107160.0,107150.0,0.2805097]
[1751295025681,1.89146646,107160.0,107150.0,0.0939001]
[1751295025886,1.89146646,107160.0,107150.0,0.2805097]
[1751295026387,2.26562436,107160.0,107150.0,0.2805097]
[1751295026576,2.24255612,107160.0,107150.0,0.2805097]
[1751295026781,1.88175612,107160.0,107150.0,0.2805097]
[1751295026988,1.50759822,107160.0,107150.0,0.4157897]
[1751295027586,1.24759822,107160.0,107150.0,0.4157897]
[1751295027988,1.18759822,107160.0,107150.0,0.4157897]
[1751295028288,1.18759822,107160.0,107150.0,0.2291801]
[1751295028289,1.92255612,107160.0,107150.0,0.2291801]
[1751295028490,1.58482551,107160.0,107150.0,0.2291801]
[1751295028792,1.56175612,107160.0,107150.0,0.4157897]
[1751295029091,1.92255612,107160.0,107150.0,0.2291801]
[1751295030593,1.18759822,107160.0,107150.0,0.2291801]
[1751295030787,1.18759822,107160.0,107150.0,0.4157896]
[1751295031089,1.18759822,107160.0,107150.0,0.7765896]
[1751295031790,1.18759822,107160.0,107150.0,1.1507475]
[1751295032191,1.18759822,107160.0,107150.0,1.3525096]
[1751295033083,1.87175612,107160.0,107150.0,0.0939001]
[1751295033283,1.87175612,107160.0,107150.0,0.8053001]
[1751295033590,2.23255612,107160.0,107150.0,0.8052601]
[1751295033779,2.31695612,107160.0,107150.0,0.8052601]
[1751295033980,2.31695612,107160.0,107150.0,0.7588601]
[1751295034188,2.00695612,107160.0,107150.0,0.1827801]
[1751295034490,1.64615612,107160.0,107150.0,0.1827801]
[1751295034793,1.64615612,107160.0,107150.0,0.2274801]
[1751295035184,2.00695612,107160.0,107150.0,0.2274801]
[1751295035787,1.63279822,107160.0,107150.0,0.2274801]
[1751295035990,1.95216572,107160.0,107150.0,0.0922001]
[1751295036385,2.30216572,107160.0,107150.0,0.0922001]
[1751295036591,2.40216572,107160.0,107150.0,0.0475001]
[1751295036890,2.27216572,107160.0,107150.0,0.0475001]
[1751295037492,1.95216572,107160.0,107150.0,0.0475001]
[1751295037686,2.27216572,107160.0,107150.0,0.0475001]
[1751295037989,2.26216572,107160.0,107150.0,0.0475001]
[1751295038387,1.95216572,107160.0,107150.0,0.0475001]
[1751295038588,2.26216572,107160.0,107150.0,0.0918001]
[1751295039094,2.28532767,107160.0,107150.0,0.0918001]
[1751295039791,2.26216572,107160.0,107150.0,0.0918001]
[1751295040493,2.28533982,107160.0,107150.0,0.0918001]
[1751295041285,1.89093982,107160.0,107150.0,0.0918001]
[1751295041491,1.53013982,107160.0,107150.0,0.0918001]
[1751295041685,1.86013982,107160.0,107150.0,0.0475001]
[1751295041997,2.30713982,107160.0,107150.0,0.0475001]
[1751295042292,2.30713982,107160.0,107150.0,1e-07]
[1751295048293,1.98777232,107160.0,107150.0,1e-07]
[1751295048799,2.30713982,107160.0,107150.0,1e-07]
[1751295054102,2.80713982,107160.0,107150.0,1e-07]
[1751295056095,3.38333982,107160.0,107150.0,1e-07]
[1751295056295,3.48333982,107160.0,107150.0,1e-07]
[1751295056694,3.38333982,107160.0,107150.0,1e-07]
[1751295059295,3.48333982,107160.0,107150.0,1e-07]
[1751295059500,3.38333982,107160.0,107150.0,1e-07]
[1751295059701,3.48333982,107160.0,107150.0,1e-07]
[1751295059901,3.38333982,107160.0,107150.0,1e-07]
[1751295060093,3.80270732,107160.0,107150.0,1e-07]
[1751295060495,3.38333982,107160.0,107150.0,1e-07]
[1751295061202,3.70270732,107160.0,107150.0,1e-07]
[1751295061501,3.80270732,107160.0,107150.0,1e-07]
[1751295063896,3.98935532,107160.0,107150.0,1e-07]
[1751295064800,3.19969232,107160.0,107150.0,1e-07]
[1751295064991,3.51905982,107160.0,107150.0,1e-07]
[1751295065196,3.93842732,107160.0,107150.0,1e-07]
[1751295065404,3.80242732,107160.0,107150.0,1e-07]
[1751295065598,2.58777232,107160.0,107150.0,1e-07]
[1751295065792,3.48297982,107160.0,107150.0,1e-07]
[1751295066302,2.90713982,107160.0,107150.0,1e-07]
[1751295066492,3.48297982,107160.0,107150.0,1e-07]
[1751295067009,3.80234732,107160.0,107150.0,1e-07]
[1751295068802,3.12650732,107160.0,107150.0,1e-07]
[1751295069002,3.80250732,107160.0,107150.0,1e-07]
[1751295069197,3.80242732,107160.0,107150.0,1e-07]
[1751295069904,3.80238732,107160.0,107150.0,1e-07]
[1751295071107,3.80230732,107160.0,107150.0,1e-07]
[1751295071302,3.80230732,107160.0,107150.0,0.0445001]
[1751295072306,3.80230732,107160.0,107150.0,0.1352001]
[1751295072507,3.80214732,107160.0,107150.0,0.1352001]
[1751295072709,3.80202732,107160.0,107150.0,0.1352001]
[1751295072907,2.58777232,107160.0,107150.0,0.1352001]
[1751295073103,3.80194732,107160.0,107150.0,0.1352001]
[1751295073307,3.80194732,107160.0,107150.0,0.0445001]
[1751295074510,3.80194732,107160.0,107150.0,0.0172695]
[1751295074709,0.1866095,107150.0,107140.0,0.09163331]
[1751295074909,1.8753911,107150.0,107140.0,0.09163331]
[1751295075308,1.87589416,107150.0,107140.0,0.09163331]
[1751295075906,1.9519561,107150.0,107140.0,0.09363331]
[1751295076408,0.1866269,107140.0,107130.0,0.14122975]
[1751295076614,1.25061875,107140.0,107130.0,0.23272975]
[1751295076909,0.93175431,107140.0,107130.0,0.23272975]
[1751295077111,1.25112181,107140.0,107130.0,0.23272975]
[1751295077313,1.35112183,107140.0,107130.0,0.23272975]
[1751295077703,1.35112183,107140.0,107130.0,0.13974975]
[1751295078010,1.35112183,107140.0,107130.0,0.14274975]
[1751295078312,1.45211861,107140.0,107130.0,0.14274975]
[1751295078501,1.45211861,107140.0,107130.0,0.0926]
[1751295078701,0.20335009,107120.0,107110.0,0.00093358]
[1751295078904,0.1,107110.0,107060.0,0.24703724]
[1751295079116,0.1867315,107080.0,107070.0,0.23223351]
[1751295079319,0.2334167,107080.0,107070.0,0.26110422]
[1751295079613,0.1867104,107100.0,107090.0,0.18621094]
[1751295079910,0.6866751,107120.0,107110.0,0.1866792]
[1751295080106,0.50025418,107120.0,107110.0,0.5060467]
[1751295080411,0.22945418,107120.0,107110.0,1.4396387]
[1751295080614,0.2333205,107130.0,107120.0,0.1866617]
[1751295080806,0.2333205,107130.0,107120.0,0.8668292]
[1751295081008,0.2333205,107130.0,107120.0,1.31473569]
[1751295081307,0.2333205,107130.0,107120.0,0.99536819]
[1751295081517,0.1866583,107130.0,107120.0,1.89193569]
[1751295081708,0.08745606,107130.0,107120.0,1.89193569]
[1751295082019,0.08845606,107130.0,107120.0,0.003]
[1751295082501,0.13435606,107130.0,107120.0,0.3257417]
[1751295082705,0.13435606,107130.0,107120.0,0.13908]
[1751295082904,0.49515606,107130.0,107120.0,0.13908]
[1751295083101,0.13485912,107130.0,107120.0,0.1896618]
[1751295083301,0.13485912,107130.0,107120.0,0.5504618]
[1751295083511,0.13485912,107130.0,107120.0,0.6875418]
[1751295083815,0.13485912,107130.0,107120.0,0.7296418]
[1751295084313,0.08895912,107130.0,107120.0,0.7296418]
[1751295084615,0.08895912,107130.0,107120.0,0.3688418]
[1751295084811,0.11457602,107130.0,107120.0,0.3688418]
[1751295085013,0.11457602,107130.0,107120.0,0.3687418]
[1751295085214,0.15917602,107130.0,107120.0,0.3687418]
[1751295085415,0.27856902,107130.0,107120.0,0.7295418]
[1751295085714,0.08895912,107130.0,107120.0,1.10381494]
[1751295086008,0.08895912,107130.0,107120.0,0.91725314]
[1751295086209,0.08895912,107130.0,107120.0,0.14008]
[1751295086518,1.17615912,107130.0,107120.0,0.3687417]
[1751295086713,1.17615912,107130.0,107120.0,0.7295417]
[1751295086912,1.08895912,107130.0,107120.0,0.7296417]
[1751295089018,1.08895912,107130.0,107120.0,1.10391484]
[1751295089623,1.08895912,107130.0,107120.0,0.7296417]
[1751295089920,1.08895912,107130.0,107120.0,0.7295417]
[1751295090616,1.13425912,107130.0,107120.0,0.9468617]
[1751295090918,1.13425912,107130.0,107120.0,0.9467817]
[1751295090919,1.55393226,107130.0,107120.0,0.9467817]
[1751295091117,1.59713226,107130.0,107120.0,0.9467817]
[1751295091418,1.22285912,107130.0,107120.0,0.9467817]
[1751295091820,1.22285912,107130.0,107120.0,0.2316617]
[1751295092323,1.22285912,107130.0,107120.0,0.9473017]
[1751295092620,1.30285912,107130.0,107120.0,0.9473017]
[1751295093216,1.30285912,107130.0,107120.0,1.3081017]
[1751295093923,1.22285912,107130.0,107120.0,1.3081017]
[1751295094317,1.22285912,107130.0,107120.0,1.68237484]
[1751295094318,1.08895912,107130.0,107120.0,1.68237484]
[1751295095023,1.00150306,107130.0,107120.0,2.11907084]
[1751295096213,1.00150306,107130.0,107120.0,1.86907084]
[1751295096819,1.00150306,107130.0,107120.0,1.15343084]
[1751295097030,1.00150306,107130.0,107120.0,2.11915084]
[1751295100317,1.00150306,107130.0,107120.0,1.86915084]
[1751295101418,1.18814736,107130.0,107120.0,1.86915084]
[1751295101820,1.00150306,107130.0,107120.0,1.86915084]
[1751295102324,1.18814736,107130.0,107120.0,1.4948777]
[1751295102519,1.18814736,107130.0,107120.0,1.15343084]
[1751295102720,2.0127205,107130.0,107120.0,0.003]
[1751295102922,2.4049205,107130.0,107120.0,0.003]
[1751295103223,0.1866618,107120.0,107110.0,0.9019992]
[1751295103423,0.1866792,107110.0,107100.0,1.52756982]
[1751295103624,0.2719792,107110.0,107100.0,2.1498401]
[1751295104527,0.2719792,107110.0,107100.0,1.5714801]
[1751295104724,0.2719792,107110.0,107100.0,2.1499201]
[1751295105524,0.2719792,107110.0,107100.0,1.4344001]
[1751295105724,0.2719792,107110.0,107100.0,2.52411324]
[1751295106026,0.2729792,107110.0,107100.0,2.53111324]
[1751295106227,0.3191792,107110.0,107100.0,2.53111324]